Cogmind - Beta 15 @@@ ROGUE MODE // 2025.06.29 @ 15:01:51 Player: Razrazz Result: Self-destructed Performance ------------- Evolutions (2) 1000 Regions Visited (5) 1000 Robots Destroyed (13) 65 Value Destroyed (437) 437 Prototype IDs (23) 460 Alien Tech Used (0) 0 Bonus (300) 300 TOTAL SCORE: 3262 Bonus ------- Aligned with FarCom 300 Cogmind --------- Core Integrity 498/550 Matter 290/300 Energy 125/125 System Corruption 0% Temperature Cool (0) Movement Treading (152) Location -8/Materials Parts ------- > --- POWER (1) -------- Light Ion Engine > --- PROPULSION (3) --- Light Treads Advanced Treads > --- UTILITY (5) ------ Small Storage Unit Visual Processing Unit > --- WEAPON (2) ------- Assault Rifle Light Assault Rifle > --- INVENTORY (8) ---- Ion Engine Light Nuclear Core Wheel Compact Matter Pod (150) Improved Terrain Scanner Skeleton Box Datajack Peak State ------------ > --- POWER ------------ Light Ion Engine > --- PROPULSION ------- Light Treads Light Treads Advanced Treads > --- UTILITY ---------- Small Storage Unit Visual Processing Unit > --- WEAPON ----------- Assault Rifle Assault Rifle > --- INVENTORY -------- Ion Engine Light Nuclear Core Wheel Compact Matter Pod Improved Terrain Scanner Skeleton Box Light Assault Rifle Datajack [Rating: 12] Favorites ----------- Power Light Ion Engine Engine Light Ion Engine Propulsion Light Treads Treads Light Treads Utility Small Storage Unit Device Seismic Detector Storage Small Storage Unit Processor Visual Processing Unit Weapon Assault Rifle Ballistic Gun Assault Rifle Build | -11 -10 -10 -10 -9 -8 ------- Run | Yrd Mat Min Exi Min Mat Slots Evolved 4 | . . . . . 4 Power . | . . . . . . Propulsion 1 | . . . . . 1 Utility 3 | . . . . . 3 Weapon . | . . . . . . Parts Attached 11 | 8 1 . . . 2 Power 1 | 1 . . . . . Engine 1 | 1 . . . . . Core . | . . . . . . Reactor . | . . . . . . Propulsion 3 | 2 . . . . 1 Treads 3 | 2 . . . . 1 Leg . | . . . . . . Wheel . | . . . . . . Hover . | . . . . . . Flight . | . . . . . . Utility 3 | 2 1 . . . . Device 1 | 1 . . . . . Storage 1 | 1 . . . . . Processor 1 | . 1 . . . . Hackware . | . . . . . . Protection . | . . . . . . Artifact . | . . . . . . Weapon 4 | 3 . . . . 1 Energy Gun . | . . . . . . Energy Cannon . | . . . . . . Ballistic Gun 4 | 3 . . . . 1 Ballistic Cannon . | . . . . . . Launcher . | . . . . . . Special Weapon . | . . . . . . Impact Weapon . | . . . . . . Slashing Weapon . | . . . . . . Piercing Weapon . | . . . . . . Special Melee Weapon . | . . . . . . Unidentified Prototypes . | . . . . . . Parts Lost 4 | . 1 . . . 3 Power . | . . . . . . Propulsion 1 | . . . . . 1 Utility 1 | . 1 . . . . Weapon 2 | . . . . . 2 Highest Loss Streak 3 | . 1 . . . 3 To Critical Strikes . | . . . . . . Average Backups 6 | 2 5 6 7 8 7 Power 1 | . 1 2 2 2 2 Propulsion . | . 1 1 1 1 1 Utility 1 | . 1 1 2 2 2 Weapon . | . 1 1 1 1 . Tool/Special . | . . . . . . Unused Backups 8 | . 1 . . . 7 Power 3 | . 1 . . . 2 Propulsion 1 | . . . . . 1 Utility 2 | . . . . . 2 Weapon . | . . . . . . Tool/Special 2 | . . . . . 2 Average Slot Usage (%) 91 | . 98 100 100 100 64 Engine 12 | . 14 14 14 14 8 Treads 26 | . 28 28 28 28 21 Storage 12 | . 14 14 14 14 9 Processor 11 | . 6 14 14 14 9 Ballistic Gun 25 | . 28 28 28 28 16 Peak Build Rating 12 | 7 9 9 9 9 12 Average Rating 9 | 5 7 9 9 9 11 On Entrance 7 | . 7 9 9 9 9 Naked Turns . | . . . . . . Heaviest Build 13 | 13 13 12 12 12 12 Greatest Support 62 | 40 40 40 40 40 62 Greatest Overweight (x) . | . . . . . . Average Overweight (x) . | . . . . . . Largest Inventory Capacity 8 | 8 8 8 8 8 8 Average Capacity 7 | 6 8 8 8 8 8 Most Carried 8 | 4 6 7 8 8 8 Average Carried 6 | 2 5 6 7 8 7 Final Capacity 8 | 8 8 8 8 8 8 Final Carried 8 | 4 6 7 8 8 7 Class Distribution -------------------- 100% | Mutant Dominant Class ---------------- Mutant | -10/Materials Mutant | -10/Mines Mutant | -10/Exiles Mutant | -9/Mines Mutant | -8/Materials Resources | -11 -10 -10 -10 -9 -8 ----------- Run | Yrd Mat Min Exi Min Mat Matter Collected 591 | 248 134 119 . . 90 Remotely . | . . . . . . Salvage Created 570 | 20 217 86 . . 247 Parts 37 | 4 16 6 . . 11 Haulers Intercepted . | . . . . . . Recyclers Shooed 1 | . . . . . 1 Parts Field Recycled . | . . . . . . Retrieved Matter . | . . . . . . Parts Self-Destructed . | . . . . . . Prevented . | . . . . . . Kills | -11 -10 -10 -10 -9 -8 ------- Run | Yrd Mat Min Exi Min Mat Combat Hostiles Destroyed 9 | . 4 2 . . 3 Guns 9 | . 4 2 . . 3 Classes Destroyed 6 | 1 3 . . . 2 Tunneler 1 | 1 . . . . . Recycler 1 | . . . . . 1 Operator 1 | . 1 . . . . Watcher 1 | . 1 . . . . Grunt 8 | . 4 2 . . 2 Hunter 1 | . . . . . 1 Best Kill Streak 2 | 1 2 1 . . 1 Combat Bots Only 2 | . 2 1 . . 1 Max Kills in Single Turn 1 | 1 1 1 . . 1 Gunslinging . | . . . . . . Exploded . | . . . . . . Melee . | . . . . . . Uniques/NPCs Destroyed . | . . . . . . Combat | -11 -10 -10 -10 -9 -8 -------- Run | Yrd Mat Min Exi Min Mat Hostile Shots Fired 88 | . 22 17 . . 49 Missed 29 | . 8 4 . . 17 Hits 59 | . 14 13 . . 32 Projectile 59 | . 14 13 . . 32 Critical Strikes 2 | . . 1 . . 1 Damage Taken 857 | . 209 178 . . 470 Core 126 | . 33 41 . . 52 Absorbed by Shields . | . . . . . . Regen/Repaired (Parts) 38 | . . . . . 38 Core Remaining (%) 85 | 100 . . . 70 . Volleys Fired 68 | 3 21 12 . . 32 Largest 2 | 2 2 2 . . 2 Hottest 40 | 40 40 40 . . 40 Shots Fired 112 | 6 42 24 . . 40 Gun 112 | 6 42 24 . . 40 Cannon . | . . . . . . Launcher . | . . . . . . Special . | . . . . . . Kinetic 112 | 6 42 24 . . 40 Thermal . | . . . . . . Explosive . | . . . . . . Electromagnetic . | . . . . . . Robot Hit Streak 16 | 2 16 12 . . 10 Robot Miss Streak 3 | 1 2 3 . . 3 Penetration Max . | . . . . . . Secondary Targets 2 | . 1 . . . 1 Max Gunslinging Chain 1 | . 1 . . . 1 Shots Hit Robots 75 | 3 28 18 . . 26 Core Hits 30 | 1 13 5 . . 11 Critical Kills 1 | . . . . . 1 Critical Parts Destroyed . | . . . . . . Critical Strikes 1 | . . . . . 1 Destroy 1 | . . . . . 1 Melee Attacks . | . . . . . . Impact . | . . . . . . Slashing . | . . . . . . Piercing . | . . . . . . Sneak Attacks . | . . . . . . Combat Hostiles . | . . . . . . Follow-up Attacks . | . . . . . . Damage Inflicted 891 | 35 365 240 . . 251 Guns 891 | 35 365 240 . . 251 Cannons . | . . . . . . Explosions . | . . . . . . Melee . | . . . . . . Ramming . | . . . . . . Kinetic 891 | 35 365 240 . . 251 Thermal . | . . . . . . Explosive . | . . . . . . Electromagnetic . | . . . . . . Impact . | . . . . . . Slashing . | . . . . . . Piercing . | . . . . . . Highest Corruption . | . . . . . . Average Corruption . | . . . . . . Corruption Purged . | . . . . . . Corruption Blocked . | . . . . . . Overload Shots . | . . . . . . Overflow Damage . | . . . . . . Projectiles . | . . . . . . Explosions . | . . . . . . Melee . | . . . . . . Knockbacks . | . . . . . . Impact . | . . . . . . Kinetic . | . . . . . . Secondary . | . . . . . . Self-Inflicted Damage . | . . . . . . Shots . | . . . . . . Rammed . | . . . . . . Targets Rammed . | . . . . . . Kicked . | . . . . . . Crushed . | . . . . . . Highest Temperature 21 | . 2 20 . . 21 Average Temperature 5 | . 2 7 . . 6 Received Heat Transfer 483 | . 120 120 . . 243 Siege Activations . | . . . . . . Martial Activations . | . . . . . . Shielding Activations . | . . . . . . Robots Disrupted . | . . . . . . Combat Hostiles . | . . . . . . Robots Corrupted . | . . . . . . Combat Hostiles . | . . . . . . Parts Fried . | . . . . . . Impact Corruptions . | . . . . . . Robots Melted . | . . . . . . Combat Hostiles . | . . . . . . Parts Melted . | . . . . . . Heat Transferred . | . . . . . . Parts Sabotaged . | . . . . . . Parts Stolen . | . . . . . . Parts Stripped . | . . . . . . Power Chain Reactions . | . . . . . . Alert | -11 -10 -10 -10 -9 -8 ------- Run | Yrd Mat Min Exi Min Mat Maximum Alert Level . | . . . . . . Low Security (%) 100 | 100 100 100 . 100 100 Level 1 . | . . . . . . Level 2 . | . . . . . . Level 3 . | . . . . . . Level 4 . | . . . . . . Level 5 . | . . . . . . High Security . | . . . . . . Max Security . | . . . . . . Peak Influence 55 | 5 55 35 . 10 30 Initial . | . . . . . . Average 5 | . 17 6 . . 1 Influence Increases 292 | 5 126 65 . 10 86 Destroy 0b10 Robot/C 180 | . 80 40 . . 60 Destroy 0b10 Robot/NC 20 | 5 10 . . . 5 Destroy Leader 42 | . 22 10 . . 10 Successful Hack 35 | . 14 . . 10 11 Lose Combat Pursuer 15 | . . 15 . . . Influence Decreases 292 | 5 126 65 . 10 86 Time Decay 252 | 5 116 65 . 10 56 Lost Part 40 | . 10 . . . 30 Squads Dispatched 6 | . 3 . . . 3 Investigation 1 | . 1 . . . . Extermination . | . . . . . . Reinforcement 2 | . 2 . . . . Assault . | . . . . . . Garrison 3 | . . . . . 3 Intercept . | . . . . . . Searches Triggered . | . . . . . . Construction Impeded . | . . . . . . Haulers Reinforced . | . . . . . . Active Scanning Responses . | . . . . . . Cargo Convoy Interrupts . | . . . . . . Stealth | -11 -10 -10 -10 -9 -8 --------- Run | Yrd Mat Min Exi Min Mat Distress Signals . | . . . . . . Communications Jammed . | . . . . . . Distress Signals . | . . . . . . Times Spotted 12 | . 6 3 . . 3 Peak Tracking Total 3 | . 3 2 . . 3 Tactical Retreats 1 | . . 1 . . . Traps | -11 -10 -10 -10 -9 -8 ------- Run | Yrd Mat Min Exi Min Mat Traps Triggered 1 | . 1 . . . . Indirectly . | . . . . . . Trap Hack Attempts . | . . . . . . Triggered . | . . . . . . Disarmed . | . . . . . . Reprogrammed . | . . . . . . Reused . | . . . . . . Traps Extracted . | . . . . . . Installed . | . . . . . . Triggered . | . . . . . . Machines | -11 -10 -10 -10 -9 -8 ---------- Run | Yrd Mat Min Exi Min Mat Machines Disabled . | . . . . . . Max in Single Turn . | . . . . . . Machines Repaired . | . . . . . . Machines Dismantled . | . . . . . . Machines Sabotaged . | . . . . . . Overloaded Fab Kills . | . . . . . . Hacking | -11 -10 -10 -10 -9 -8 --------- Run | Yrd Mat Min Exi Min Mat Machines Accessed 10 | . 2 . 5 1 2 Terminals 4 | . 2 . . 1 1 Fabricators . | . . . . . . Repair Stations 1 | . . . . . 1 Recycling Units . | . . . . . . Scanalyzers . | . . . . . . Garrison Access . | . . . . . . Total Hacks 70 | . 4 . 50 3 13 Successful 58 | . 1 . 50 2 5 Failed 12 | . 3 . . 1 8 Catastrophic 2 | . 1 . . 1 . Database Lockouts . | . . . . . . Manual 11 | . 4 . 1 2 4 Terminals 13 | . 4 . . 3 6 Fabricators . | . . . . . . Repair Stations 7 | . . . . . 7 Recycling Units . | . . . . . . Scanalyzers . | . . . . . . Garrison Access . | . . . . . . Terminal Hacks 53 | . . . 50 1 2 Record 49 | . . . 49 . . Level Access Points 1 | . . . . . 1 Dispatch Records 1 | . . . . . 1 Zone Layout 1 | . . . . 1 . Proto ID Catalog 1 | . . . 1 . . Fabricator Hacks . | . . . . . . Repair Station Hacks 2 | . . . . . 2 Scan Component 1 | . . . . . 1 Repair 1 | . . . . . 1 Recycling Unit Hacks . | . . . . . . Scanalyzer . | . . . . . . Garrison Access Hacks . | . . . . . . Unauthorized Hacks 3 | . 1 . . 1 1 Terminals 3 | . 1 . . 1 1 Botnet 3 | . 1 . . 1 1 Fabricators . | . . . . . . Repair Stations . | . . . . . . Recycling Units . | . . . . . . Scanalyzers . | . . . . . . Garrison Access . | . . . . . . Data Cores Recovered 1 | . 1 . . . . Used . | . . . . . . Hacking Detections 5 | . 2 . . 1 2 Full Trace Events 1 | . . . . . 1 Feedback Events . | . . . . . . Feedback Blocked . | . . . . . . Robot Schematics Acquired . | . . . . . . Robots Built . | . . . . . . Authchips . | . . . . . . Time . | . . . . . . Total Robot Build Rating . | . . . . . . Part Schematics Acquired . | . . . . . . Parts Built . | . . . . . . Authchips . | . . . . . . Time . | . . . . . . Total Part Build Rating . | . . . . . . Parts Repaired 1 | . . . . . 1 Time 26 | . . . . . 26 Parts Recycled . | . . . . . . Recycled Matter . | . . . . . . Retrieved Matter . | . . . . . . Retrieved Components . | . . . . . . Parts Scanalyzed . | . . . . . . Part Schematics Acquired . | . . . . . . Parts Damaged . | . . . . . . Bothacking | -11 -10 -10 -10 -9 -8 ------------ Run | Yrd Mat Min Exi Min Mat Used RIF Installer . | . . . . . . Robots Hacked . | . . . . . . Non-combat . | . . . . . . Combat . | . . . . . . Robot Hacks Applied . | . . . . . . Relay Couplers Released . | . . . . . . Fabnet Peak Effective % . | . . . . . . Robots Rewired . | . . . . . . Allies Hacked . | . . . . . . Hacks Repelled . | . . . . . . Allies | -11 -10 -10 -10 -9 -8 -------- Run | Yrd Mat Min Exi Min Mat Total Allies 2 | . . . . 2 . Largest Group 2 | . . . . 2 2 Highest-Rated Group 45 | . . . . 45 45 Highest-Rated Ally 31 | . . . . 31 31 Total Orders . | . . . . . . Ally Attacks 4 | . . . . . 4 Total Damage 43 | . . . . . 43 Kills . | . . . . . . Allies Corrupted . | . . . . . . Allies Melted . | . . . . . . Intel | -11 -10 -10 -10 -9 -8 ------- Run | Yrd Mat Min Exi Min Mat Active Infowar (turns) 2846 | 47 322 402 982 450 643 Optics 2665 | . 188 402 982 450 643 Seismic 181 | 47 134 . . . . Robot Analysis Total . | . . . . . . Derelict Logs Recovered 3 | . . 1 . 2 . Drone Launches . | . . . . . . Drone Recoveries . | . . . . . . Exploration | -11 -10 -10 -10 -9 -8 ------------- Run | Yrd Mat Min Exi Min Mat Turns Passed 2966 | 116 373 402 982 450 643 Spaces Moved 1679 | 60 180 225 614 257 343 Core 6 | 6 . . . . . Treads 1673 | 54 180 225 614 257 343 Legs . | . . . . . . Wheels . | . . . . . . Hover . | . . . . . . Flight . | . . . . . . Fastest Speed 50 | 50 160 160 160 160 152 Average Speed 158 | 149 160 160 160 160 153 Slowest Speed 160 | 160 160 160 160 160 160 Overloaded Moves . | . . . . . . Propulsion Burnouts . | . . . . . . Robots Hopped . | . . . . . . Potential Cave-ins . | . . . . . . Cave-ins Triggered . | . . . . . . Exploration Rate (%) 48 | 4 49 54 95 78 12 Regions Visited 5 Branch Regions 3 Pre-discovered Areas 1 | . . . 1 . . Known Exits Taken 1 | . . . 1 . . Unknown Exits Taken 4 | 1 1 1 . 1 . Scrap Searched . | . . . . . . Spaces Dug . | . . . . . . Terrain Destroyed . | . . . . . . Melee . | . . . . . . Projectile . | . . . . . . AOE . | . . . . . . Terrain Rammed . | . . . . . . Walls Destroyed . | . . . . . . Machines Disabled . | . . . . . . Actions | -11 -10 -10 -10 -9 -8 --------- Run | Yrd Mat Min Exi Min Mat Total 1876 | 77 223 243 614 296 423 Wait 111 | 3 18 6 . 40 44 Move 1674 | 59 179 224 613 256 343 Hop . | . . . . . . Pick Up 9 | 4 3 1 1 . . Fast Attach 11 | 7 1 . . . 3 Attach 1 | . . . . . 1 Detach . | . . . . . . Swap 1 | 1 . . . . . Drop 1 | . 1 . . . . Fire 68 | 3 21 12 . . 32 Melee . | . . . . . . Ram . | . . . . . . Kick . | . . . . . . Crush . | . . . . . . Escape Stasis . | . . . . . . Rewire . | . . . . . . Trap . | . . . . . . Miscellaneous . | . . . . . . Route ------- -11/Scrapyard -10/Materials (discovered 3 exits: [*Mat] / [*Min x2]) -10/Mines (discovered 3 exits: [*Mat] / *Exi / [*Sub]) -10/Exiles (discovered 2 exits: *Min x2) -9/Mines -8/Materials (discovered 3 exits: Fac x3) History --------- Turn | Location | Event 12 | -11/Scrapyard | Discovered new exit (range 16) 117 | -11/Scrapyard | Entered Materials 308 | -10/Materials | Discovered new exit (range 18) 323 | -10/Materials | Build established: Mutant 467 | -10/Materials | Discovered new exit (range 18) 471 | -10/Materials | Discovered new exit (range 11) 490 | -10/Materials | Entered Mines 498 | -10/Mines | Met a Derelict bent on vengeance 527 | -10/Mines | Discovered new exit (range 12) 777 | -10/Mines | Discovered new exit (range 13) 881 | -10/Mines | Deemed a non-threat by the Exiles lab entrance 882 | -10/Mines | Discovered new exit (range 5) 892 | -10/Mines | Entered Exiles 893 | -10/Exiles | Identified exit to Mines 942 | -10/Exiles | Met 8R-AWN 971 | -10/Exiles | Met EX-HEX 1032 | -10/Exiles | Met EX-DEC 1082 | -10/Exiles | Visited The Gauntlet 1300 | -10/Exiles | Met EX-BIN 1478 | -10/Exiles | Learned location of Zion (-6) 1660 | -10/Exiles | Aligned with FarCom system 1662 | -10/Exiles | Given EX-Vault access code 1699 | -10/Exiles | Opened EX-Vault 1708 | -10/Exiles | Found Skeleton Box 1743 | -10/Exiles | Warned to stay clear of 0b10 Research branches 1874 | -10/Exiles | Left Exiles lab with Skeleton Box 1874 | -10/Exiles | Entered Mines 1910 | -9/Mines | Learned Materials security intel 2098 | -9/Mines | Learned Materials garrison access intel 2101 | -9/Mines | Discovered new exit (range 7) 2324 | -9/Mines | Entered Materials 2324 | -8/Materials | Accompanied by 2 allies 2324 | -8/Materials | Evolved 4 slots: Propulsion x1, Utility x3 2326 | -8/Materials | Loaded intel: 1 garrison access location 2329 | -8/Materials | Led the pair of lost Derelicts to an unsafe place 2455 | -8/Materials | Identified exit to Factory 2583 | -8/Materials | Garrison activated, responded to threat 2632 | -8/Materials | Lost 3 parts (1n2w) 2839 | -8/Materials | Repaired Lgt. Ion Engine 2967 | -8/Materials | Self-destructed Last Messages --------------- 02696_ R-06 Scavenger collects Carbon-fiber Leg. 02699_ K-01 Serf collects debris. 02700_ R-06 Scavenger collects Lgt. Nuclear Core. 02711_ K-01 Serf collects debris. 02813_ Connecting with Repair Station... >>Scan(Lgt. Ion Engine) Scanning Lgt. Ion Engine... Ready to Repair: Lgt. Ion Engine Rating: 1 Time: 26 >>Repair Repairing Lgt. Ion Engine... ETC: 26 02839_ Repair station completes Lgt. Ion Engine repairs. 02839_ Connecting with Repair Station... 02845_ Acquired Lgt. Ion Engine. 02853_ K-01 Serf collects debris. Map ----- +----------------------------------------------------+ | ????????????????????????????????????????? | | ????????????????????????????????????????? | | ???#######??????????????????????????????? | | ???# #####??????????????????????????? | | ???# ???????????????????????????? | | ???# ????????????????????????????? | | ???# ?????????????????????????????? | | ???# ! #??????????????????????????????? | | ????# #???????????????????????????????? | | ????# #???????????????????????????????? | | ????# #???????????????????????????????? | | ????# #???????????????????????????????? | | ????# #???????????????????????????????? | | ????# ##########??????????????????????? | | ????# # #??????????????????????? | | ????# #""" #??????????????????????? | | ????# #"R #??????????????????????? | | ????# #""" #??????????????????????? | | ????# + #??????????????????????? | | ????# # """ #??????????????????????? | | ????# # """ #??????????????????????? | | ????# # """ #??????????????????????# | | ????# # #??????????????????????# | | ????# ###########???????????########### | | ????# # #???????????# ## | | ????# + @ #???????????# ## | | ????# # # ??????????# #? | | ????# # # ??????????# #? | | ????# ########### ????????## # | | ????## ##?????????# ??????""?# + | | ?????# #??????????# *???? G"# #? | | ?????# #??????????# ???? ""?# % #? | | ?????# #??????????? ??" #??# % #? | | ?????# #??????????Y? ?"" #??###+######? | | ?????# #????????????? ????### ###???? | | ?????# ######+#########+####### % #???? | | ?????# % ##### | | ?????# * % | | ?????# =% ##### | | ?????########################## #???? | | ??????????????????????????????#######???? | | ????????????????????????????????????????? | | ????????????????????????????????????????? | | | | | | | | | | | | | | | +----------------------------------------------------+ Best States ------------- Heat Dissipation 31 Energy Generation 10 Energy Capacity 125 Matter Stores 300 Matter Capacity 300 Sight Range 18 Terrain Scan Density 10 Evasion (%) 40 Recoil Reduction 3 Item Schematics ----------------- None Robot Schematics ------------------ None Fabricated ------------ Nothing Repaired ---------- Lgt. Ion Engine | 5% | -8/Materials Alien Tech Used ----------------- None Achievements -------------- Troublemaker Challenges ------------ None Game ------ Seed WarpMassTendrils Manual? 0 Play Time 00:34:47 Cumulative 8.1 hours Start 2025.06.28 @ 13:10:22 End 2025.06.29 @ 15:01:51 Sessions 3 Manual Loads 0 Difficulty Rogue Special Mode None Game No. 25 Rogue 25 Adventurer 0 Explorer 0 Win Type - Total 0 Types 0/0/0/0/0/0/0/0/0/0 Lore% 12 Gallery% 10 Achievement% 19 Wizard Run 0 Options --------- Layout 1 ASCII 0 Keyboard 0 Movement Numpad Keybinds 0 Fullscreen 1 Font 32/SmallcapsGlow Map View 50x35 Zoom Use 0% Tactical HUD 1 Map Filters NONE Filters NONE Steam 1 RUN: 6784426d-1db9-4bdc-8156-f6b1fd6ec8bb